Cogmind - Beta 13 @@@ ROGUE MODE // 2024.06.21 @ 21:54:35 Player: CONNOR_M Result: Destroyed by S-10 Pest with Light Assault Rifle Performance ------------- Evolutions (0) 0 Regions Visited (2) 400 Robots Destroyed (11) 55 Value Destroyed (104) 104 Prototype IDs (0) 0 Alien Tech Used (0) 0 Bonus (0) 0 TOTAL SCORE: 559 Bonus ------- None Cogmind --------- Core Integrity 0/250 Matter 300/300 Energy 98/100 System Corruption 0% Temperature Cool (1) Movement Walking (120) Location -10/Mines Parts ------- > --- POWER (1) -------- (None) > --- PROPULSION (2) --- Aluminum Leg > --- UTILITY (2) ------ Small Storage Unit Seismic Detector > --- WEAPON (2) ------- Light Assault Rifle > --- INVENTORY (8) ---- Ion Engine Heat Sink High-capacity Matter Pod (200) Experimental Sensor Array Improved Terrain Scanner Small Laser Mining Laser Peak State ------------ > --- POWER ------------ Ion Engine > --- PROPULSION ------- Wheel Compact Wheel > --- UTILITY ---------- Small Storage Unit Seismic Detector > --- WEAPON ----------- Light Assault Rifle Light Assault Rifle > --- INVENTORY -------- Ion Engine Light Ion Engine Aluminum Leg Aluminum Leg Heat Sink Improved Terrain Scanner Small Laser Mining Laser [Rating: 8] Favorites ----------- Power Ion Engine Engine Ion Engine Propulsion Aluminum Leg Leg Aluminum Leg Wheel Wheel Utility Small Storage Unit Device Seismic Detector Storage Small Storage Unit Weapon Light Assault Rifle Ballistic Gun Light Assault Rifle Build | -11 -10 -10 ------- Run | Yrd Mat Min Slots Evolved . | . . . Power . | . . . Propulsion . | . . . Utility . | . . . Weapon . | . . . Parts Attached 9 | 7 . 2 Power 1 | 1 . . Engine 1 | 1 . . Core . | . . . Reactor . | . . . Propulsion 4 | 2 . 2 Treads . | . . . Leg 2 | . . 2 Wheel 2 | 2 . . Hover . | . . . Flight . | . . . Utility 2 | 2 . . Device 1 | 1 . . Storage 1 | 1 . . Processor . | . . . Hackware . | . . . Protection . | . . . Artifact . | . . . Weapon 2 | 2 . . Energy Gun . | . . . Energy Cannon . | . . . Ballistic Gun 2 | 2 . . Ballistic Cannon . | . . . Launcher . | . . . Special Weapon . | . . . Impact Weapon . | . . . Slashing Weapon . | . . . Piercing Weapon . | . . . Special Melee Weapon . | . . . Unidentified Prototypes . | . . . Parts Lost 3 | . . 3 Power 1 | . . 1 Propulsion 1 | . . 1 Utility . | . . . Weapon 1 | . . 1 Highest Loss Streak 3 | . . 3 To Critical Strikes . | . . . Average Slot Usage (%) 98 | . 100 98 Engine 13 | . 14 13 Leg 17 | . . 23 Wheel 9 | . 28 4 Device 14 | . 14 14 Storage 14 | . 14 14 Ballistic Gun 27 | . 28 27 Naked Turns . | . . . Heaviest Build 13 | 13 13 13 Greatest Support 26 | 26 26 26 Greatest Overweight (x) 1 | . . 1 Average Overweight (x) . | . . . Largest Inventory Capacity 8 | 8 8 8 Average Capacity 7 | 6 8 8 Most Carried 8 | 5 8 8 Average Carried 6 | 3 6 7 Final Capacity 8 | 8 8 8 Final Carried 8 | 5 8 7 Class Distribution -------------------- 100% | Mutant Dominant Class ---------------- Mutant | -10/Materials Mutant | -10/Mines Resources | -11 -10 -10 ----------- Run | Yrd Mat Min Matter Collected 346 | 266 24 56 Remotely . | . . . Salvage Created 172 | 36 31 105 Parts 20 | 6 4 10 Haulers Intercepted . | . . . Recyclers Shooed . | . . . Parts Field Recycled . | . . . Retrieved Matter . | . . . Parts Self-Destructed . | . . . Prevented . | . . . Kills | -11 -10 -10 ------- Run | Yrd Mat Min Combat Hostiles Destroyed 9 | . 2 7 Guns 9 | . 2 7 Classes Destroyed 2 | 1 1 . Tunneler 2 | 2 . . Swarmer 9 | . 2 7 Best Kill Streak 3 | 1 2 3 Combat Bots Only 3 | . 2 3 Max Kills in Single Turn 1 | 1 1 1 Gunslinging . | . . . Exploded . | . . . Melee . | . . . Uniques/NPCs Destroyed . | . . . Combat | -11 -10 -10 -------- Run | Yrd Mat Min Hostile Shots Fired 71 | . 11 60 Missed 21 | . 5 16 Damage Taken 700 | . 46 654 Core 250 | . 16 234 Absorbed by Shields . | . . . Core Remaining (%) 100 | 100 . . Volleys Fired 28 | 4 6 18 Largest 2 | 2 2 2 Hottest 40 | 40 40 40 Shots Fired 56 | 8 12 36 Gun 56 | 8 12 36 Cannon . | . . . Launcher . | . . . Special . | . . . Kinetic 56 | 8 12 36 Thermal . | . . . Explosive . | . . . Electromagnetic . | . . . Robot Hit Streak 7 | 4 4 7 Robot Miss Streak 3 | 1 3 3 Penetration Max . | . . . Secondary Targets . | . . . Shots Hit Robots 34 | 6 7 21 Core Hits 19 | 4 4 11 Critical Kills . | . . . Critical Parts Destroyed . | . . . Critical Strikes . | . . . Melee Attacks . | . . . Impact . | . . . Slashing . | . . . Piercing . | . . . Sneak Attacks . | . . . Combat Hostiles . | . . . Follow-up Attacks . | . . . Damage Inflicted 284 | 44 72 168 Guns 284 | 44 72 168 Cannons . | . . . Explosions . | . . . Melee . | . . . Ramming . | . . . Kinetic 284 | 44 72 168 Thermal . | . . . Explosive . | . . . Electromagnetic . | . . . Impact . | . . . Slashing . | . . . Piercing . | . . . Highest Corruption . | . . . Average Corruption . | . . . Corruption Purged . | . . . Corruption Blocked . | . . . Overload Shots . | . . . Overflow Damage . | . . . Projectiles . | . . . Explosions . | . . . Melee . | . . . Knockbacks . | . . . Impact . | . . . Kinetic . | . . . Secondary . | . . . Self-Inflicted Damage . | . . . Shots . | . . . Rammed . | . . . Targets Rammed . | . . . Kicked . | . . . Crushed . | . . . Highest Temperature . | . . . Average Temperature . | . . . Received Heat Transfer . | . . . Siege Activations . | . . . Robots Corrupted . | . . . Combat Hostiles . | . . . Parts Fried . | . . . Impact Corruptions . | . . . Robots Melted . | . . . Combat Hostiles . | . . . Parts Melted . | . . . Heat Transferred . | . . . Parts Sabotaged . | . . . Parts Stolen . | . . . Parts Stripped . | . . . Power Chain Reactions . | . . . Alert | -11 -10 -10 ------- Run | Yrd Mat Min Peak Influence 147 | 10 71 147 Initial 27 | . 6 27 Average 59 | 2 48 73 Maximum Alert Level . | . . . Low Security (%) 100 | 100 100 100 Level 1 . | . . . Level 2 . | . . . Level 3 . | . . . Level 4 . | . . . Level 5 . | . . . High Security . | . . . Max Security . | . . . Squads Dispatched 1 | . 1 . Investigation . | . . . Extermination . | . . . Reinforcement 1 | . 1 . Assault . | . . . Garrison . | . . . Intercept . | . . . Searches Triggered . | . . . Construction Impeded . | . . . Haulers Reinforced . | . . . Active Scanning Responses . | . . . Cargo Convoy Interrupts . | . . . Stealth | -11 -10 -10 --------- Run | Yrd Mat Min Distress Signals 1 | . 1 . Communications Jammed . | . . . Distress Signals . | . . . Times Spotted 18 | . 5 13 Peak Tracking Total 4 | . 4 4 Tactical Retreats 1 | . . 1 Traps | -11 -10 -10 ------- Run | Yrd Mat Min Traps Triggered . | . . . Indirectly . | . . . Trap Hack Attempts . | . . . Triggered . | . . . Disarmed . | . . . Reprogrammed . | . . . Reused . | . . . Traps Extracted . | . . . Installed . | . . . Triggered . | . . . Machines | -11 -10 -10 ---------- Run | Yrd Mat Min Machines Disabled . | . . . Max in Single Turn . | . . . Machines Repaired . | . . . Machines Dismantled . | . . . Machines Sabotaged . | . . . Overloaded Fab Kills . | . . . Hacking | -11 -10 -10 --------- Run | Yrd Mat Min Machines Accessed 3 | . 2 1 Terminals 3 | . 2 1 Fabricators . | . . . Repair Stations . | . . . Recycling Units . | . . . Scanalyzers . | . . . Garrison Access . | . . . Total Hacks 4 | . 3 1 Successful 1 | . 1 . Failed 3 | . 2 1 Catastrophic 1 | . 1 . Database Lockouts . | . . . Manual 1 | . . 1 Terminals 4 | . 3 1 Fabricators . | . . . Repair Stations . | . . . Recycling Units . | . . . Scanalyzers . | . . . Garrison Access . | . . . Terminal Hacks 1 | . 1 . Locate Traps 1 | . 1 . Fabricator Hacks . | . . . Repair Station Hacks . | . . . Recycling Unit Hacks . | . . . Scanalyzer . | . . . Garrison Access Hacks . | . . . Unauthorized Hacks . | . . . Terminals . | . . . Fabricators . | . . . Repair Stations . | . . . Recycling Units . | . . . Scanalyzers . | . . . Garrison Access . | . . . Data Cores Recovered . | . . . Used . | . . . Hacking Detections 3 | . 2 1 Full Trace Events . | . . . Feedback Events . | . . . Feedback Blocked . | . . . Robot Schematics Acquired . | . . . Robots Built . | . . . Authchips . | . . . Time . | . . . Total Robot Build Rating . | . . . Part Schematics Acquired . | . . . Parts Built . | . . . Authchips . | . . . Time . | . . . Total Part Build Rating . | . . . Parts Repaired . | . . . Time . | . . . Parts Recycled . | . . . Recycled Matter . | . . . Retrieved Matter . | . . . Retrieved Components . | . . . Parts Scanalyzed . | . . . Part Schematics Acquired . | . . . Parts Damaged . | . . . Bothacking | -11 -10 -10 ------------ Run | Yrd Mat Min Used RIF Installer . | . . . Robots Hacked . | . . . Non-combat . | . . . Combat . | . . . Robot Hacks Applied . | . . . Relay Couplers Released . | . . . Fabnet Peak Effective % . | . . . Robots Rewired . | . . . Allies Hacked . | . . . Hacks Repelled . | . . . Allies | -11 -10 -10 -------- Run | Yrd Mat Min Total Allies . | . . . Largest Group . | . . . Highest-Rated Group . | . . . Highest-Rated Ally . | . . . Total Orders . | . . . Ally Attacks . | . . . Total Damage . | . . . Kills . | . . . Allies Corrupted . | . . . Allies Melted . | . . . Intel | -11 -10 -10 ------- Run | Yrd Mat Min Robot Analysis Total . | . . . Derelict Logs Recovered 1 | . . 1 Drone Launches . | . . . Drone Recoveries . | . . . Exploration | -11 -10 -10 ------------- Run | Yrd Mat Min Turns Passed 1317 | 169 263 885 Spaces Moved 1127 | 158 272 697 Core 5 | 5 . . Treads . | . . . Legs 602 | . . 602 Wheels 520 | 153 272 95 Hover . | . . . Flight . | . . . Fastest Speed 50 | 50 90 90 Average Speed 106 | 88 90 116 Slowest Speed 190 | 90 90 190 Overloaded Moves . | . . . Propulsion Burnouts . | . . . Robots Hopped . | . . . Cave-ins Triggered . | . . . Exploration Rate (%) 48 | 7 43 94 Regions Visited 2 Branch Regions 1 Pre-discovered Areas 1 | . . 1 Known Exits Taken . | . . . Unknown Exits Taken 2 | 1 1 . Scrap Searched . | . . . Spaces Dug . | . . . Terrain Destroyed . | . . . Melee . | . . . Projectile . | . . . AOE . | . . . Terrain Rammed . | . . . Walls Destroyed . | . . . Machines Disabled . | . . . Actions | -11 -10 -10 --------- Run | Yrd Mat Min Total 1198 | 177 280 741 Wait 20 | 3 . 17 Move 1125 | 157 271 697 Hop . | . . . Pick Up 12 | 6 3 3 Fast Attach 6 | 6 . . Attach 1 | 1 . . Detach . | . . . Swap 2 | . . 2 Drop 4 | . . 4 Fire 28 | 4 6 18 Melee . | . . . Ram . | . . . Kick . | . . . Crush . | . . . Escape Stasis . | . . . Rewire . | . . . Trap . | . . . Miscellaneous . | . . . Route ------- -11/Scrapyard -10/Materials (discovered 3 exits: [*Mat] / *Min x2) -10/Mines (discovered 2 exits: [*Mat x2]) History --------- Turn | Location | Event 2 | -11/Scrapyard | Met Revision 17 20 | -11/Scrapyard | Discovered new exit (range 16) 170 | -11/Scrapyard | Entered Materials 185 | -10/Materials | Discovered new exit (range 11) 308 | -10/Materials | Build established: Mutant 329 | -10/Materials | Discovered new exit (range 15) 408 | -10/Materials | Discovered new exit (range 16) 433 | -10/Materials | Entered Mines 473 | -10/Mines | Learned location of Zion (-6) 611 | -10/Mines | Found a damaged Exp. Sensor Array with a note attached 614 | -10/Mines | Found Prototype Device 781 | -10/Mines | Assembled infested the area 1084 | -10/Mines | Discovered new exit (range 9) 1124 | -10/Mines | Discovered new exit (range 11) 1266 | -10/Mines | Core integrity fell below 50% 1308 | -10/Mines | Core integrity fell below 20% 1318 | -10/Mines | Destroyed by S-10 Pest with Light Assault Rifle Last Messages --------------- 01048_ Acquired 10 matter. 01049_ Acquired 2 matter. 01069_ K-01 Serf collects debris. 01084_ EXIT=FOUND 01149_ U-05 Engineer lays Concrete. 01173_ U-05 Engineer builds a Wall. 01222_ U-05 Engineer lays Concrete. 01237_ U-05 Engineer builds a Wall. 01265_ K-01 Serf destroyed. 01270_ U-05 Engineer lays Concrete. 01275_ U-05 Engineer builds a Wall. 01276_ Aluminum Leg destroyed. 01278_ Lgt. Assault Rifle destroyed. 01279_ U-05 Engineer builds a Wall. 01282_ The unstable cave ceiling collapses. 01283_ U-05 Engineer lays Concrete. 01288_ The unstable cave ceiling collapses. 01292_ K-01 Serf collects debris. 01292_ Ion Engine destroyed. 01295_ K-01 Serf collects debris. Map ----- +----------------------------------------------------+ | | | | | | | | | | | | | | | | | ?????????????????????????????????????????????????? | | ???????????????##########??????#?????????????????? | | ??????????????## $ ?????? #?????????????????? | | ??????????????# ?????? #?????????????????? | | ??????????####? # #?????? ####??????????????? | | ?????????## ### ?# #?????# ###?????????? | | ????????## ## ### #???## """ ##????????? | | ????????# # ## ##??# """ #????????? | | ????????# # #??# """ #????????? | | ?????????# % #### #?????????? | | ????????## % ## #?????????? | | ???????## #????????? | | ???????# ## #???????? | | ???????# #### ## ###### #???????? | | ???????# ##??###### s ##????????? #???????? | | ???????## ##????????# s ##????????????????????? | | ????????# ##?????????# #?????????????????????? | | ????????# #??????????## @##?????????????????????? | | ######### ####???#######s #??????????????????????? | | #???# #??????????????????????? | | #???# ##### #??????????????????####? | | ############ #???# #???# #?????????????????## ## | | ???????????# #???# #???# #?????????????????# # | | ########### ?#???# #???# ##???????????????## # | | ?????# ##### ####??????####### ## | | ?????# ##??#### ##? | | ####### ?????# #### #### ##?? | | #??????? ?????# #??### ###??? | | ##??????? ?????# #????# ##????? | | #???????? #?????# #????# #### ##?????? | | ?????????# #?????# #????## # ##??## #?###### | | ????###### #?????# #?????#######????## #?# | | ????# ####### #?????############ ### !!! | | ????# #### #?????# [[ ! ! | | ??### #??######### #?????# """ ## ### ! ! | | #?# #??????????# #?????# """ ### #?# !!== | | #?# ###??????????# #?????# """ #?## ### | | #?# #????????????# #?????# < #?# # # | | ??# #????????????# #?????# #?# # ###### | | ??# #????????????# #??##############?# #??? | | ??# #????????????# #### ##??????????## #??? | | ??# #????????????# ##?????????# ##??? | +----------------------------------------------------+ Best States ------------- Heat Dissipation 25 Energy Generation 10 Energy Capacity 250 Matter Stores 300 Matter Capacity 300 Sight Range 16 Terrain Scan Density 10 Evasion (%) 55 Item Schematics ----------------- None Robot Schematics ------------------ None Fabricated ------------ Nothing Alien Tech Used ----------------- None Achievements -------------- None Challenges ------------ None Game ------ Seed GlidesysStorageArmor Manual? 0 Play Time 00:15:11 Cumulative 34.2 hours Start 2024.06.21 @ 20:44:50 End 2024.06.21 @ 21:54:35 Sessions 1 Manual Loads 0 Difficulty Rogue Special Mode None Game No. 62 Rogue 62 Adventurer 0 Explorer 0 Win Type - Total 0 Types 0/0/0/0/0/0/0/0/0 Lore% 21 Gallery% 23 Achievement% 26 Wizard Run 0 Options --------- Layout 0 ASCII 0 Keyboard 0 Movement Arrows Keybinds 0 Fullscreen 2 Font 18/SmallcapsGlow Map View 76x50 Zoom Use 0% Tactical HUD 1 Map Filters NONE Filters NONE Steam 1 RUN: 8e90bad2-bbde-45e2-8f36-7c54b9eb03df